fUSD/lending_fUSD_20260524
["ID","MTS","AMOUNT","RATE_DAILY","PERIOD"]
[422906313,1779604232000,-500.0,0.00014999,2]
[422906344,1779604232000,-87425.07972697,0.00015,2]
[422906330,1779604232000,-500.0,0.00014999,2]
[422906346,1779604232000,-25210.59271172,0.00015,2]
[422906329,1779604232000,-500.0,0.00014999,2]
[422906328,1779604232000,-500.0,0.00014999,2]
[422906318,1779604232000,-500.0,0.00014999,2]
[422906316,1779604232000,-379.55121611,0.00014999,2]
[422906320,1779604232000,-500.0,0.00014999,2]
[422906319,1779604232000,-500.0,0.00014999,2]
[422906352,1779604232000,-495.59533408,0.00015,2]
[422906321,1779604232000,-500.0,0.00014999,2]
[422906322,1779604232000,-500.0,0.00014999,2]
[422906317,1779604232000,-500.0,0.00014999,2]
[422906323,1779604232000,-500.0,0.00014999,2]
[422906326,1779604232000,-500.0,0.00014999,2]
[422906331,1779604232000,-500.0,0.00014999,2]
[422906333,1779604232000,-500.0,0.00014999,2]
[422906324,1779604232000,-590.75430068,0.00014999,2]
[422906325,1779604232000,-500.0,0.00014999,2]
[422906332,1779604232000,-351.68922847,0.00014999,2]
[422906334,1779604232000,-500.0,0.00014999,2]
[422906327,1779604232000,-500.0,0.00014999,2]
[422906371,1779604238000,-13060.24096751,0.000165,2]
[422906396,1779604238000,-502.0,0.00018,2]
[422906393,1779604238000,-500.0,0.00017999,2]
[422906395,1779604238000,-1207.11017478,0.00018,2]
[422906374,1779604238000,-12996.0131445,0.00016886,2]
[422906384,1779604238000,-150.0,0.00017402,2]
[422906385,1779604238000,-792.76240828,0.000177,2]
[422906392,1779604238000,-2000.0,0.00017942,2]
[422906387,1779604238000,-2500.0,0.00017877,2]
[422906390,1779604238000,-1238.8775972,0.0001789,2]
[422906405,1779604238000,-153.18,0.00018846,2]
[422906394,1779604238000,-110828.26471776,0.00018,2]
[422906388,1779604238000,-650.0,0.00017877,2]
[422906389,1779604238000,-1350.0,0.00017877,7]
[422906398,1779604238000,-1801.35715722,0.000181,2]
[422906408,1779604238000,-5234.33859492,0.00019,2]
[422906409,1779604238000,-364.23786313,0.0001901,7]
[422906410,1779604238000,-178.02,0.00019179,2]
[422906397,1779604238000,-150.0,0.00018087,2]
[422906402,1779604238000,-471.7,0.0001841,2]
[422906373,1779604238000,-1042.13,0.00016648,2]
[422906386,1779604238000,-403.0,0.000177,5]
[422906372,1779604238000,-1000.0,0.000165,2]
[422906359,1779604238000,-500.0,0.00015274,2]
[422906376,1779604238000,-150.99,0.00016922,2]
[422906356,1779604238000,-1378939.44556166,0.00015,2]
[422906358,1779604238000,-190.96,0.0001501,2]
[422906357,1779604238000,-500.0,0.00015,2]
[422906369,1779604238000,-500.0,0.00016438,2]
[422906404,1779604238000,-736.0,0.00018628,2]
[422906366,1779604238000,-1650.0,0.0001611,15]
[422906368,1779604238000,-200.0,0.0001634,2]
[422906361,1779604238000,-2000.0,0.00015514,2]
[422906363,1779604238000,-500.0,0.00015709,2]
[422906365,1779604238000,-200.92116636,0.000161,7]
[422906370,1779604238000,-6613.54001206,0.000165,2]
[422906360,1779604238000,-1517.64,0.000153,2]
[422906367,1779604238000,-255.0,0.00016123,2]
[422906364,1779604238000,-2271.40549563,0.00015807,2]
[422906375,1779604238000,-9999.99,0.00016922,2]
[422906382,1779604238000,-299.99,0.00016922,4]
[422906380,1779604238000,-9999.99,0.00016922,2]
[422906378,1779604238000,-9999.99,0.00016922,2]
[422906381,1779604238000,-4770.81,0.00016922,2]
[422906377,1779604238000,-1737.79,0.00016922,5]
[422906379,1779604238000,-999.99,0.00016922,2]
[422906383,1779604238000,-433.0,0.00017338,2]
[422906362,1779604238000,-503.56250299,0.00015548,2]
[422906407,1779604238000,-1690.0,0.00019,2]
[422906391,1779604238000,-112917.71695092,0.000179,2]
[422906399,1779604238000,-500.0,0.00018108,2]
[422906435,1779604238000,-230.09519341,0.00019503,2]
[422906432,1779604238000,-151.0,0.00019503,2]
[422906434,1779604238000,-151.0,0.00019503,2]
[422906430,1779604238000,-213.96859442,0.00019503,2]
[422906438,1779604238000,-151.0,0.00019503,2]
[422906440,1779604238000,-247.43723804,0.00019503,2]
[422906447,1779604238000,-275.93152964,0.00019503,2]
[422906439,1779604238000,-151.0,0.00019503,2]
[422906444,1779604238000,-151.0,0.00019503,2]
[422906441,1779604238000,-151.0,0.00019503,2]
[422906442,1779604238000,-151.0,0.00019503,2]
[422906445,1779604238000,-266.08633524,0.00019503,2]
[422906443,1779604238000,-256.59241585,0.00019503,2]
[422906449,1779604238000,-151.0,0.00019503,2]
[422906448,1779604238000,-151.0,0.00019503,2]
[422906450,1779604238000,-286.14099624,0.00019503,2]
[422906452,1779604238000,-296.7282131,0.00019503,2]
[422906453,1779604238000,-151.0,0.00019503,2]
[422906454,1779604238000,-151.0,0.00019503,2]
[422906451,1779604238000,-151.0,0.00019503,2]
[422906456,1779604238000,-151.0,0.00019503,2]
[422906455,1779604238000,-435.02238219,0.00019503,2]
[422906400,1779604238000,-3872.65737912,0.00018137,2]
[422906433,1779604238000,-221.88543241,0.00019503,2]
[422906428,1779604238000,-151.0,0.00019503,2]
[422906446,1779604238000,-151.0,0.00019503,2]
[422906431,1779604238000,-151.0,0.00019503,2]
[422906401,1779604238000,-43626.17,0.00018356,2]
[422906425,1779604238000,-151.0,0.00019503,2]
[422906411,1779604238000,-151.0,0.00019503,2]
[422906403,1779604238000,-1042.13,0.00018497,2]
[422906406,1779604238000,-12996.0131445,0.00018873,2]
[422906412,1779604238000,-151.0,0.00019503,2]
[422906414,1779604238000,-151.0,0.00019503,2]
[422906413,1779604238000,-200.0,0.00019503,2]
[422906416,1779604238000,-151.0,0.00019503,2]
[422906420,1779604238000,-151.0,0.00019503,2]
[422906421,1779604238000,-191.87295522,0.00019503,2]
[422906418,1779604238000,-151.0,0.00019503,2]
[422906426,1779604238000,-151.0,0.00019503,2]
[422906437,1779604238000,-238.60871557,0.00019503,2]
[422906419,1779604238000,-185.02695778,0.00019503,2]
[422906436,1779604238000,-151.0,0.00019503,2]
[422906427,1779604238000,-206.33422798,0.00019503,2]
[422906424,1779604238000,-198.97225456,0.00019503,2]
[422906429,1779604238000,-151.0,0.00019503,2]
[422906422,1779604238000,-151.0,0.00019503,2]
[422906417,1779604238000,-151.0,0.00019503,2]
[422906415,1779604238000,-151.0,0.00019503,2]
[422906423,1779604238000,-1734.62772924,0.00019503,2]
[422906505,1779604239000,-200.0,0.00020051,2]
[422906498,1779604239000,-338.0,0.0002,2]
[422906497,1779604239000,-215.34753388,0.0002,7]
[422906503,1779604239000,-169.48,0.00020013,2]
[422906495,1779604239000,-152.0,0.0002,2]
[422906484,1779604239000,-26784.60920099,0.0002,2]
[422906489,1779604239000,-200.0,0.0002,2]
[422906494,1779604239000,-163.15671991,0.0002,14]
[422906490,1779604239000,-1059.11818865,0.0002,2]
[422906488,1779604239000,-507.06774107,0.0002,10]
[422906501,1779604239000,-2986.0,0.0002,2]
[422906483,1779604239000,-651.0,0.0002,2]
[422906496,1779604239000,-334.0,0.0002,2]
[422906499,1779604239000,-202.0,0.0002,2]
[422906508,1779604239000,-1042.13,0.00020347,2]
[422906502,1779604239000,-190.96,0.00020013,2]
[422906500,1779604239000,-154.0,0.0002,2]
[422906507,1779604239000,-300.01498938,0.000201,2]
[422906517,1779604239000,-500.0,0.00020511,2]
[422906518,1779604239000,-507.94558638,0.00020511,2]
[422906506,1779604239000,-1798.80895522,0.00020051,2]
[422906509,1779604239000,-471.7,0.00020381,2]
[422906511,1779604239000,-151.0,0.00020509,2]
[422906510,1779604239000,-43053.4783,0.00020412,2]
[422906512,1779604239000,-300.0,0.00020511,2]
[422906516,1779604239000,-500.0,0.00020511,2]
[422906513,1779604239000,-300.0,0.00020511,2]
[422906487,1779604239000,-2079.91826267,0.0002,2]
[422906504,1779604239000,-953.0,0.00020022,2]
[422906486,1779604239000,-54671.0,0.0002,7]
[422906461,1779604239000,-151.0,0.00019503,2]
[422906493,1779604239000,-13096.83015203,0.0002,2]
[422906515,1779604239000,-1358.54243293,0.00020511,5]
[422906457,1779604239000,-151.0,0.00019503,2]
[422906459,1779604239000,-151.0,0.00019503,2]
[422906469,1779604239000,-500.0,0.00019503,2]
[422906458,1779604239000,-151.0,0.00019503,2]
[422906460,1779604239000,-151.0,0.00019503,2]
[422906463,1779604239000,-151.0,0.00019503,2]
[422906462,1779604239000,-151.0,0.00019503,2]
[422906465,1779604239000,-500.0,0.00019503,2]
[422906467,1779604239000,-500.0,0.00019503,2]
[422906468,1779604239000,-500.0,0.00019503,2]
[422906464,1779604239000,-500.0,0.00019503,2]
[422906466,1779604239000,-500.0,0.00019503,2]
[422906485,1779604239000,-1312.09097925,0.0002,2]
[422906472,1779604239000,-500.0,0.00019503,2]
[422906470,1779604239000,-500.0,0.00019503,2]
[422906471,1779604239000,-500.0,0.00019503,2]
[422906474,1779604239000,-500.0,0.00019503,2]
[422906473,1779604239000,-500.0,0.00019503,2]
[422906477,1779604239000,-500.0,0.00019503,2]
[422906476,1779604239000,-500.0,0.00019503,2]
[422906475,1779604239000,-500.0,0.00019503,2]
[422906479,1779604239000,-3443.20271129,0.000199,3]
[422906480,1779604239000,-500.0,0.00019999,2]
[422906478,1779604239000,-521.20369368,0.00019503,2]
[422906491,1779604239000,-155.0,0.0002,2]
[422906482,1779604239000,-192.0,0.0002,2]
[422906492,1779604239000,-52346.3177061,0.0002,2]
[422906481,1779604239000,-10000.0,0.0002,2]
[422906514,1779604239000,-202.18508596,0.00020511,5]
[422906557,1779604239000,-151.0,0.00020512,2]
[422906520,1779604239000,-500.0,0.00020511,2]
[422906555,1779604239000,-151.0,0.00020512,2]
[422906552,1779604239000,-526.896243,0.00020512,2]
[422906553,1779604239000,-498.523832,0.00020512,2]
[422906554,1779604239000,-498.523832,0.00020512,2]
[422906559,1779604239000,-151.0,0.00020512,2]
[422906570,1779604239000,-174.415055,0.0002057,2]
[422906568,1779604239000,-151.0,0.00020512,2]
[422906561,1779604239000,-166.175143,0.00020512,2]
[422906558,1779604239000,-151.0,0.00020512,2]
[422906569,1779604239000,-226.535597,0.0002057,2]
[422906565,1779604239000,-151.0,0.00020512,2]
[422906564,1779604239000,-152.113508,0.00020512,2]
[422906563,1779604239000,-166.175143,0.00020512,2]
[422906548,1779604239000,-526.896243,0.00020512,2]
[422906560,1779604239000,-166.175143,0.00020512,2]
[422906566,1779604239000,-177.708708,0.00020512,2]
[422906567,1779604239000,-151.0,0.00020512,2]
[422906571,1779604239000,-175.736705,0.0002057,2]
[422906573,1779604239000,-150.0,0.0002058,2]
[422906580,1779604239000,-189.71122238,0.000206,2]
[422906574,1779604239000,-150.0,0.0002058,2]
[422906575,1779604239000,-150.0,0.0002058,2]
[422906579,1779604239000,-406.3131192,0.000206,2]
[422906577,1779604239000,-200.0,0.00020599,2]
[422906576,1779604239000,-150.0,0.0002058,2]
[422906578,1779604239000,-1865.36488656,0.00020599,2]
[422906572,1779604239000,-150.0,0.0002058,2]
[422906519,1779604239000,-500.0,0.00020511,2]
[422906562,1779604239000,-166.175143,0.00020512,2]
[422906551,1779604239000,-498.523832,0.00020512,2]
[422906581,1779604239000,-1176.4963138,0.000206,2]
[422906546,1779604239000,-151.0,0.00020512,2]
[422906549,1779604239000,-498.523832,0.00020512,2]
[422906521,1779604239000,-500.0,0.00020511,2]
[422906529,1779604239000,-500.0,0.00020511,2]
[422906526,1779604239000,-500.0,0.00020511,2]
[422906528,1779604239000,-500.0,0.00020511,2]
[422906527,1779604239000,-500.0,0.00020511,2]
[422906530,1779604239000,-500.0,0.00020511,2]
[422906525,1779604239000,-500.0,0.00020511,2]
[422906524,1779604239000,-500.0,0.00020511,2]
[422906523,1779604239000,-500.0,0.00020511,2]
[422906531,1779604239000,-500.0,0.00020511,2]
[422906543,1779604239000,-151.0,0.00020512,2]
[422906537,1779604239000,-500.0,0.00020511,2]
[422906542,1779604239000,-1867.08,0.00020511,2]
[422906522,1779604239000,-500.0,0.00020511,2]
[422906536,1779604239000,-500.0,0.00020511,2]
[422906533,1779604239000,-500.0,0.00020511,2]
[422906535,1779604239000,-500.0,0.00020511,2]
[422906541,1779604239000,-1867.08,0.00020511,2]
[422906538,1779604239000,-500.0,0.00020511,2]
[422906544,1779604239000,-151.0,0.00020512,2]
[422906534,1779604239000,-500.0,0.00020511,2]
[422906540,1779604239000,-500.0,0.00020511,2]
[422906532,1779604239000,-500.0,0.00020511,2]
[422906539,1779604239000,-500.0,0.00020511,2]
[422906545,1779604239000,-151.0,0.00020512,2]
[422906547,1779604239000,-526.896243,0.00020512,2]
[422906556,1779604239000,-153.755778,0.00020512,2]
[422906550,1779604239000,-526.896243,0.00020512,2]
[422906628,1779604240000,-498.523832,0.0002099,2]
[422906624,1779604240000,-526.896243,0.0002099,2]
[422906634,1779604240000,-151.0,0.0002099,2]
[422906627,1779604240000,-526.896243,0.0002099,2]
[422906615,1779604240000,-5395.5439226,0.0002099,2]
[422906617,1779604240000,-71563.324285,0.0002099,2]
[422906616,1779604240000,-2944.0491446,0.0002099,2]
[422906620,1779604240000,-151.0,0.0002099,2]
[422906622,1779604240000,-151.0,0.0002099,2]
[422906613,1779604240000,-300.0,0.00020989,2]
[422906614,1779604240000,-312.08235769,0.00020989,2]
[422906612,1779604240000,-1867.08,0.00020989,2]
[422906631,1779604240000,-498.523832,0.0002099,2]
[422906625,1779604240000,-526.896243,0.0002099,2]
[422906633,1779604240000,-151.0,0.0002099,2]
[422906632,1779604240000,-151.0,0.0002099,2]
[422906626,1779604240000,-498.523832,0.0002099,2]
[422906629,1779604240000,-526.896243,0.0002099,2]
[422906630,1779604240000,-498.523832,0.0002099,2]
[422906637,1779604240000,-166.175143,0.0002099,2]
[422906642,1779604240000,-162.469386,0.0002099,2]
[422906640,1779604240000,-151.0,0.0002099,2]
[422906648,1779604240000,-251.64801,0.0002099,2]
[422906647,1779604240000,-456.578922,0.0002099,2]
[422906638,1779604240000,-166.175143,0.0002099,2]
[422906639,1779604240000,-166.175143,0.0002099,2]
[422906621,1779604240000,-151.0,0.0002099,2]
[422906643,1779604240000,-456.578922,0.0002099,2]
[422906635,1779604240000,-151.0,0.0002099,2]
[422906623,1779604240000,-151.0,0.0002099,2]
[422906610,1779604240000,-500.0,0.00020989,2]
[422906619,1779604240000,-2696.833359,0.0002099,2]
[422906636,1779604240000,-166.175143,0.0002099,2]
[422906583,1779604240000,-224.831908,0.00020673,2]
[422906582,1779604240000,-1630.01,0.000206,2]
[422906585,1779604240000,-500.0,0.00020711,2]
[422906595,1779604240000,-12996.0131445,0.00020859,2]
[422906584,1779604240000,-22975.69202751,0.000207,2]
[422906586,1779604240000,-500.88002424,0.00020711,2]
[422906597,1779604240000,-1200.0,0.000209,7]
[422906589,1779604240000,-225.39,0.00020711,2]
[422906592,1779604240000,-189.71122238,0.000208,2]
[422906593,1779604240000,-1176.4963138,0.000208,2]
[422906590,1779604240000,-2000.0,0.00020742,2]
[422906588,1779604240000,-500.0,0.00020711,2]
[422906618,1779604240000,-308572.4853635,0.0002099,2]
[422906587,1779604240000,-500.0,0.00020711,2]
[422906598,1779604240000,-500.0,0.00020908,2]
[422906601,1779604240000,-27701.77,0.00020951,2]
[422906606,1779604240000,-457.9767215,0.00020989,2]
[422906600,1779604240000,-9999.99,0.00020951,2]
[422906599,1779604240000,-428.98,0.0002092,2]
[422906609,1779604240000,-500.0,0.00020989,2]
[422906603,1779604240000,-500.0,0.00020989,2]
[422906608,1779604240000,-500.0,0.00020989,2]
[422906607,1779604240000,-500.0,0.00020989,2]
[422906604,1779604240000,-500.0,0.00020989,2]
[422906605,1779604240000,-500.0,0.00020989,2]
[422906602,1779604240000,-500.0,0.00020989,2]
[422906611,1779604240000,-1867.08,0.00020989,2]
[422906591,1779604240000,-406.3131192,0.000208,2]
[422906645,1779604240000,-456.578922,0.0002099,2]
[422906703,1779604240000,-500.0,0.00021765,2]
[422906644,1779604240000,-456.578922,0.0002099,2]
[422906679,1779604240000,-506.69695703,0.00021416,7]
[422906682,1779604240000,-58371.17374444,0.000215,2]
[422906683,1779604240000,-225.28713837,0.000215,2]
[422906677,1779604240000,-3872.65737912,0.00021364,2]
[422906684,1779604240000,-166.04094743,0.00021525,2]
[422906686,1779604240000,-202.64095844,0.00021695,2]
[422906685,1779604240000,-10000.0,0.00021666,2]
[422906698,1779604240000,-500.0,0.00021765,2]
[422906688,1779604240000,-1176.4963138,0.000217,2]
[422906699,1779604240000,-509.01520863,0.00021765,2]
[422906687,1779604240000,-2005.9555727,0.00021695,2]
[422906689,1779604240000,-300.0,0.00021756,2]
[422906690,1779604240000,-151.0,0.00021763,2]
[422906680,1779604240000,-300.0,0.00021499,2]
[422906695,1779604240000,-598.15296991,0.00021765,2]
[422906692,1779604240000,-500.0,0.00021765,2]
[422906693,1779604240000,-497.68995271,0.00021765,2]
[422906697,1779604240000,-508.40286137,0.00021765,2]
[422906691,1779604240000,-378.19470933,0.00021765,2]
[422906696,1779604240000,-500.0,0.00021765,2]
[422906700,1779604240000,-500.0,0.00021765,2]
[422906701,1779604240000,-501.54002188,0.00021765,2]
[422906702,1779604240000,-500.0,0.00021765,2]
[422906708,1779604240000,-500.0,0.00021765,2]
[422906706,1779604240000,-512.0093558,0.00021765,2]
[422906704,1779604240000,-500.0,0.00021765,2]
[422906705,1779604240000,-500.0,0.00021765,2]
[422906646,1779604240000,-155.712414,0.0002099,2]
[422906694,1779604240000,-500.0,0.00021765,2]
[422906681,1779604240000,-406.3131192,0.000215,2]
[422906707,1779604240000,-500.0,0.00021765,2]
[422906676,1779604240000,-406.3131192,0.000213,2]
[422906678,1779604240000,-1176.4963138,0.000214,2]
[422906650,1779604240000,-251.64801,0.0002099,2]
[422906651,1779604240000,-251.64801,0.0002099,2]
[422906649,1779604240000,-251.64801,0.0002099,2]
[422906661,1779604240000,-1209.73914843,0.00021,2]
[422906654,1779604240000,-151.0,0.0002099,2]
[422906652,1779604240000,-154.286921,0.0002099,2]
[422906660,1779604240000,-651.0,0.00021,2]
[422906655,1779604240000,-151.0,0.0002099,2]
[422906656,1779604240000,-406.3131192,0.00021,2]
[422906657,1779604240000,-189.71122238,0.00021,2]
[422906658,1779604240000,-1176.4963138,0.00021,2]
[422906659,1779604240000,-192.0,0.00021,2]
[422906653,1779604240000,-151.0,0.0002099,2]
[422906663,1779604240000,-3414.42120023,0.00021,7]
[422906669,1779604240000,-200.0,0.00021147,2]
[422906662,1779604240000,-199.66013812,0.00021,2]
[422906668,1779604240000,-2000.0,0.00021094,7]
[422906667,1779604240000,-202.0,0.00021,2]
[422906670,1779604240000,-1934.38338736,0.00021147,2]
[422906671,1779604240000,-189.71122238,0.000212,2]
[422906672,1779604240000,-1176.4963138,0.000212,2]
[422906641,1779604240000,-151.0,0.0002099,2]
[422906665,1779604240000,-334.0,0.00021,2]
[422906675,1779604240000,-500.0,0.0002125,2]
[422906666,1779604240000,-338.0,0.00021,2]
[422906674,1779604240000,-500.0,0.00021214,2]
[422906673,1779604240000,-500.0,0.00021214,2]
[422906664,1779604240000,-155.0,0.00021,2]
[422906753,1779604241000,-500.2,0.00022065,5]
[422906750,1779604241000,-500.0,0.00022065,2]
[422906748,1779604241000,-759.63,0.00022012,2]
[422906747,1779604241000,-487.0,0.00022012,2]
[422906745,1779604241000,-254.00184555,0.00022012,2]
[422906742,1779604241000,-202.0,0.00022,2]
[422906744,1779604241000,-500.0,0.00022011,2]
[422906743,1779604241000,-206.70320979,0.00022,3]
[422906746,1779604241000,-487.0,0.00022012,2]
[422906752,1779604241000,-500.0,0.00022065,4]
[422906749,1779604241000,-701.55680585,0.00022032,2]
[422906741,1779604241000,-338.0,0.00022,2]
[422906777,1779604241000,-3659.52342296,0.000226,2]
[422906751,1779604241000,-500.0,0.00022065,3]
[422906765,1779604241000,-1042.13,0.00022197,2]
[422906764,1779604241000,-243.81411031,0.0002211,2]
[422906756,1779604241000,-213.59415349,0.00022066,2]
[422906762,1779604241000,-1176.4963138,0.000221,2]
[422906760,1779604241000,-191.33326164,0.00022066,2]
[422906763,1779604241000,-527.44351568,0.000221,7]
[422906758,1779604241000,-204.89923747,0.00022066,2]
[422906766,1779604241000,-200.0,0.00022203,2]
[422906775,1779604241000,-36032.34262071,0.000225,2]
[422906773,1779604241000,-1176.4963138,0.000225,2]
[422906779,1779604241000,-151.0,0.000226,2]
[422906739,1779604241000,-300.0,0.00022,2]
[422906754,1779604241000,-418.86160912,0.00022065,2]
[422906740,1779604241000,-334.0,0.00022,2]
[422906719,1779604241000,-1176.4963138,0.000219,2]
[422906733,1779604241000,-192.0,0.00022,2]
[422906778,1779604241000,-151.0,0.000226,2]
[422906712,1779604241000,-500.0,0.00021765,2]
[422906711,1779604241000,-500.0,0.00021765,2]
[422906709,1779604241000,-500.0,0.00021765,2]
[422906710,1779604241000,-500.0,0.00021765,2]
[422906713,1779604241000,-500.0,0.00021765,2]
[422906714,1779604241000,-200.0,0.00021766,2]
[422906715,1779604241000,-500.0,0.00021851,2]
[422906725,1779604241000,-4918.6136598,0.000219,2]
[422906724,1779604241000,-2444.36664398,0.000219,2]
[422906716,1779604241000,-500.0,0.00021851,2]
[422906720,1779604241000,-500.0,0.000219,2]
[422906723,1779604241000,-502.3605091,0.000219,2]
[422906734,1779604241000,-651.0,0.00022,2]
[422906722,1779604241000,-15651.53926381,0.000219,2]
[422906717,1779604241000,-194.63575793,0.00021866,2]
[422906721,1779604241000,-1630.01,0.000219,2]
[422906726,1779604241000,-5000.0,0.00021918,2]
[422906731,1779604241000,-259.91315185,0.00021999,2]
[422906729,1779604241000,-192.47,0.00021918,2]
[422906728,1779604241000,-1005.66,0.00021918,2]
[422906730,1779604241000,-200.0,0.00021984,2]
[422906727,1779604241000,-3078.71,0.00021918,2]
[422906735,1779604241000,-166001.7230637,0.00022,4]
[422906732,1779604241000,-10000.0,0.00022,3]
[422906738,1779604241000,-160.0,0.00022,2]
[422906736,1779604241000,-814.07097232,0.00022,7]
[422906737,1779604241000,-155.0,0.00022,2]
[422906718,1779604241000,-1600.0,0.000219,7]
[422906767,1779604241000,-5662.02,0.00022222,5]
[422906791,1779604241000,-1867.08,0.00022691,2]
[422906769,1779604241000,-1176.4963138,0.000223,2]
[422906814,1779604241000,-151.0,0.00022692,2]
[422906806,1779604241000,-151.0,0.00022692,2]
[422906807,1779604241000,-151.0,0.00022692,2]
[422906805,1779604241000,-498.523832,0.00022692,2]
[422906809,1779604241000,-151.0,0.00022692,2]
[422906812,1779604241000,-166.175143,0.00022692,2]
[422906811,1779604241000,-166.175143,0.00022692,2]
[422906808,1779604241000,-151.0,0.00022692,2]
[422906819,1779604241000,-2157.14243826,0.00022791,2]
[422906816,1779604241000,-151.0,0.00022692,2]
[422906770,1779604241000,-471.7,0.00022353,2]
[422906818,1779604241000,-180.32779079,0.00022724,2]
[422906821,1779604241000,-12996.0131445,0.00022845,2]
[422906817,1779604241000,-531.19533287,0.0002271,2]
[422906824,1779604241000,-651.0,0.00023,2]
[422906823,1779604241000,-192.0,0.00023,2]
[422906826,1779604241000,-334.0,0.00023,2]
[422906827,1779604241000,-338.0,0.00023,2]
[422906822,1779604241000,-174.33372524,0.0002299,2]
[422906825,1779604241000,-166.71755222,0.00023,2]
[422906828,1779604241000,-202.0,0.00023,2]
[422906831,1779604241000,-280.0,0.00023009,2]
[422906829,1779604241000,-3183.0002051,0.00023,2]
[422906830,1779604241000,-209878.0,0.00023,2]
[422906833,1779604241000,-218.0,0.00023009,2]
[422906832,1779604241000,-150.0,0.00023009,2]
[422906834,1779604241000,-629.54955154,0.00023024,2]
[422906815,1779604241000,-151.0,0.00022692,2]
[422906810,1779604241000,-166.175143,0.00022692,2]
[422906820,1779604241000,-108813.20132368,0.000228,2]
[422906804,1779604241000,-498.523832,0.00022692,2]
[422906813,1779604241000,-166.175143,0.00022692,2]
[422906768,1779604241000,-2080.17592889,0.00022243,2]
[422906774,1779604241000,-2900.0,0.000225,15]
[422906771,1779604241000,-846.02,0.00022466,2]
[422906772,1779604241000,-1120.53,0.00022466,2]
[422906780,1779604241000,-456.578922,0.00022681,2]
[422906782,1779604241000,-456.578922,0.00022681,2]
[422906784,1779604241000,-251.64801,0.00022681,2]
[422906781,1779604241000,-456.578922,0.00022681,2]
[422906783,1779604241000,-456.578922,0.00022681,2]
[422906785,1779604241000,-251.64801,0.00022681,2]
[422906786,1779604241000,-251.64801,0.00022681,2]
[422906787,1779604241000,-251.64801,0.00022681,2]
[422906789,1779604241000,-500.0,0.00022691,2]
[422906776,1779604241000,-500.57694666,0.00022506,2]
[422906790,1779604241000,-500.0,0.00022691,2]
[422906788,1779604241000,-500.0,0.00022691,2]
[422906797,1779604241000,-164.863342,0.00022692,2]
[422906795,1779604241000,-257.801114,0.00022692,2]
[422906799,1779604241000,-526.896243,0.00022692,2]
[422906798,1779604241000,-526.896243,0.00022692,2]
[422906796,1779604241000,-151.0,0.00022692,2]
[422906803,1779604241000,-498.523832,0.00022692,2]
[422906794,1779604241000,-151.0,0.00022692,2]
[422906801,1779604241000,-526.896243,0.00022692,2]
[422906793,1779604241000,-14221.69,0.00022691,2]
[422906792,1779604241000,-980.38,0.00022691,2]
[422906802,1779604241000,-526.896243,0.00022692,2]
[422906800,1779604241000,-498.523832,0.00022692,2]
[422906847,1779604242000,-286.40081671,0.0002349,2]
[422906854,1779604242000,-151.0,0.0002349,2]
[422906853,1779604242000,-578.20924308,0.0002349,2]
[422906849,1779604242000,-583.43528699,0.0002349,2]